{"text_format":"1","workbook":"xlsx","n_sheets":2,"sheets":["Quiz","Feuil2"],"not_rendered":{"charts":0,"images":161,"macros":1,"external_links":0,"defined_names":2,"comments":0,"pivot_tables":0},"unopened":[],"bounds":{"document_bytes":16777216,"sheet_cells":100000,"rows_first":2000,"rows_last":500,"rows_between":2000,"halvings":0,"cell_chars":16384,"cell_head_chars":4096},"cells_cut":0,"cells_raw":0,"read":"whole","date_system":"1900"}

{"sheet":"Quiz","index":0,"n_rows":99,"n_cols":15,"rows_kept":99,"cut":false,"hidden":false,"merged":[[3,3,4,3],[0,2,1,2],[3,2,4,2],[0,4,1,4]]}
[null,null,null,{"$f":"I4","v":82}]
[null,null,null,{"$f":"I18","v":100},null,{"$f":"IF(K8=\"oui\",\"2 choix !\",\"\")","v":""}]
[]
[null,{"$f":"IF(I4>I7,\"\",VLOOKUP(I4,Feuil2!A20:C92,3))","v":""},{"$f":"IF(K5=0,\"\",IF(I8=\"oui\",\"P\",\"O\"))","v":""},"Répondre en cliquant sur le nom de la fleur. La gomme annule votre choix et libère le tirage. Les flèches du haut font défiler les fleurs sans attendre une réponse.",null,null,null,"Tirage / Menu",82,{"$f":"IF(I5=0,J6,I5)","v":38}]
[null,{"$f":"IF(I4>I7,\"\",VLOOKUP(I4,Feuil2!A20:D92,4))","v":""},null,null,{"$f":"IF(I8=\"oui\",\"\",IF(OR(I23=1,I23=4),\"8\",\"?\"))","v":"8"},{"$f":"IF(OR(I23=2,I23=3),I16,\"\")","v":""},5,"Menu A /a+b",0,{"$f":"SUM(I5:I6)","v":0},0]
[null,null,null,null,null,null,6,"Menu B ",0,{"$f":"I6+ 38","v":38},{"$f":"IF(I5=0,J6,I5)","v":38}]
[null,null,null,null,null,null,7,"nb fleurs / série",76,1]
[null,null,null,null,null,null,8,"Bonne réponse ",{"$f":"IF(I23=4,K30,IF(I4=J4,\"oui\",\"non\"))","v":"non"},{"$f":"IF(J7=1,0,6)","v":0},{"$f":"IF(I5>0,IF(I6>0,\"oui\",\"non\"),\"non\")","v":"non"}]
[null,null," ",null,null,null,9,"Voir en défilant",false,false]
[null,null,null,null,null,null,10,"Voir stat / latin",false,false]
[null,null,null,null,null,null,11,"solution / famille",false,false]
[null,null,null,null,null,null,12,"nb rep",0,{"$f":"IF(INT((I12-I16)/5)<0,0,INT((I12-I16)/5))","v":0}]
[null,null,null,null,null,null,13,"nb juste",0,{"$f":"I13-I15","v":0}]
[null,null,null,null,null,null,14,"nb gomme",0]
["Liste des tirages de cette série :",null,null,null,null,null,15,"nb voir",0,null,null,null,null,"Lettres "]
[0,1,{"$f":"IF(A16=0,\"\",O16&VLOOKUP(A16,Data,2))","v":""},null,null,null,16,"nb tir",0,100,null,null,null,null,{"$f":"IF(N16=\"\",\"\",N16&\" - \")","v":""}]
[0,2,"",null,null,null,17,"évaluation",null,{"$f":"IF(I16=0,0,ROUND(J16*(I13-J12)/(I16),0))","v":0},null,null,null,null,{"$f":"IF(N17=\"\",\"\",N17&\" - \")","v":""}]
[0,3,"",null,null,null,18,"zoom",100,{"$f":"J17&\"/100\"","v":"0/100"},null,null,null,null,""]
[0,4,"",null,null,null,19,"Information",1,null,null,null,null,null,""]
[0,5,"",null,null,null,20,null,null,null,null,null,null,null,""]
[0,6,"",null,null,null,21,null,null,null,null,null,null,null,""]
[0,7,"",null,null,null,22,"liste",false,null,null,null,null,null,""]
[0,8,"",null,null,null,23,"réponse",1,{"$f":"IF(I23<2,1,0)","v":1},null,null,null,null,""]
[0,9,"",null,null,null,24,null,null,null,null,null,null,null,""]
[0,10,"",null,null,null,25,"Tirage abcd",1,41,null,null,null,null,""]
[0,11,"",null,null,null,26,null,2,15,null,"selection",{"$f":"INDEX(I31:J35,M28,2)","v":{"$error":"#VALUE!"}},null,""]
[0,12,"",null,null,null,27,null,3,58,null,"rep menu",0,null,""]
[0,13,"",null,null,null,28,null,4,47,null,"rep ABCD",{"$f":"M27-1","v":-1},null,""]
[0,14,"",null,null,null,29,null,5,52,null,"v ABCD",{"$f":"MATCH(5,M31:M35,0)","v":2},null,""]
[0,15,"",null,null,null,30,null,"rang",null,{"$f":"IF(M30=1,\"oui\",\"non\")","v":"non"},null,{"$f":"IF(M28=M29,1,0)","v":0},null,""]
[0,16,"",null,null,null,31,"A",{"$f":"RANK(J25,$J$25:$J$29)","v":4},{"$f":"VLOOKUP(I31,$I$25:$J$29,2)","v":47},1,{"$f":"IF($I$4>76,\"\",\"A   \"&VLOOKUP(J31,Feuil2!$A$20:$B$97,2))","v":""},{"$f":"I31","v":4},null,""]
[0,17,"",null,null,null,32,"B",{"$f":"RANK(J26,$J$25:$J$29)","v":5},{"$f":"VLOOKUP(I32,$I$25:$J$29,2)","v":52},2,{"$f":"IF($I$4>76,\"\",\"B   \"&VLOOKUP(J32,Feuil2!$A$20:$B$97,2))","v":""},{"$f":"I32","v":5},null,""]
[0,18,"",null,null,null,33,"C",1,41,3,{"$f":"IF($I$4>76,\"\",\"C   \"&VLOOKUP(J33,Feuil2!$A$20:$B$97,2))","v":""},1,null,""]
[0,19,"",null,null,null,34,"D",3,58,4,{"$f":"IF($I$4>76,\"\",\"D  \"&VLOOKUP(J34,Feuil2!$A$20:$B$97,2))","v":""},3,null,""]
[0,20,"",null,null,null,35,"E",2,15,5,{"$f":"IF($I$4>76,\"\",\"E   \"&VLOOKUP(J35,Feuil2!$A$20:$B$97,2))","v":""},{"$f":"I35","v":2},null,""]
[0,21,"",null,null,null,null,null,null,null,"lettre juste",{"$f":"VLOOKUP(M29+30,G31:H35,2)","v":"B"},null,null,""]
[0,22,"",null,null,null,null,null,null,null,null,null,null,null,""]
[0,23,"",null,null,null,null,null,null,null,null,null,null,null,""]
[0,24,"",null,null,null,null,null,null,null,null,null,null,null,""]
[0,25,"",null,null,null,null,null,null,null,null,null,null,null,""]
[0,26,"",null,null,null,null,null,null,null,null,null,null,null,""]
[0,27,"",null,null,null,null,null,null,null,null,null,null,null,""]
[0,28,"",null,null,null,null,null,null,null,null,null,null,null,""]
[0,29,"",null,null,null,null,null,null,null,null,null,null,null,""]
[0,30,"",null,null,null,null,null,null,null,null,null,null,null,""]
[0,31,"",null,null,null,null,null,null,null,null,null,null,null,""]
[0,32,"",null,null,null,null,null,null,null,null,null,null,null,""]
[0,33,{"$f":"IF(A48=0,\"\",O48&VLOOKUP(A48,Data,2))","v":""},null,null,null,null,null,null,null,null,null,null,null,""]
[0,34,"",null,null,null,null,null,null,null,null,null,null,null,""]
[0,35,"",null,null,null,null,null,null,null,null,null,null,null,""]
[0,36,"",null,null,null,null,null,null,null,null,null,null,null,""]
[0,37,"",null,null,null,null,null,null,null,null,null,null,null,""]
[0,38,"",null,null,null,null,null,null,null,null,null,null,null,""]
[0,39,"",null,null,null,null,null,null,null,null,null,null,null,""]
[0,40,"",null,null,null,null,null,null,null,null,null,null,null,""]
[0,41,"",null,null,null,null,null,null,null,null,null,null,null,""]
[0,42,"",null,null,null,null,null,null,null,null,null,null,null,""]
[0,43,"",null,null,null,null,null,null,null,null,null,null,null,""]
[0,44,"",null,null,null,null,null,null,null,null,null,null,null,""]
[0,45,"",null,null,null,null,null,null,null,null,null,null,null,""]
[0,46,"",null,null,null,null,null,null,null,null,null,null,null,""]
[0,47,"",null,null,null,null,null,null,null,null,null,null,null,""]
[0,48,"",null,null,null,null,null,null,null,null,null,null,null,""]
[0,49,"",null,null,null,null,null,null,null,null,null,null,null,""]
[0,50,"",null,null,null,null,null,null,null,null,null,null,null,""]
[0,51,"",null,null,null,null,null,null,null,null,null,null,null,""]
[0,52,"",null,null,null,null,null,null,null,null,null,null,null,""]
[0,53,"",null,null,null,null,null,null,null,null,null,null,null,""]
[0,54,"",null,null,null,null,null,null,null,null,null,null,null,""]
[0,55,"",null,null,null,null,null,null,null,null,null,null,null,{"$f":"IF(N70=\"\",\"\",N70&\" - \")","v":""}]
[0,56,"",null,null,null,null,null,null,null,null,null,null,null,""]
[0,57,"",null,null,null,null,null,null,null,null,null,null,null,""]
[0,58,"",null,null,null,null,null,null,null,null,null,null,null,""]
[0,59,"",null,null,null,null,null,null,null,null,null,null,null,""]
[0,60,"",null,null,null,null,null,null,null,null,null,null,null,""]
[0,61,"",null,null,null,null,null,null,null,null,null,null,null,""]
[0,62,"",null,null,null,null,null,null,null,null,null,null,null,""]
[0,63,"",null,null,null,null,null,null,null,null,null,null,null,""]
[0,64,"",null,null,null,null,null,null,null,null,null,null,null,""]
[0,65,{"$f":"IF(A80=0,\"\",O80&VLOOKUP(A80,Data,2))","v":""},null,null,null,null,null,null,null,null,null,null,null,""]
[0,66,"",null,null,null,null,null,null,null,null,null,null,null,""]
[0,67,"",null,null,null,null,null,null,null,null,null,null,null,""]
[0,68,"",null,null,null,null,null,null,null,null,null,null,null,""]
[0,69,"",null,null,null,null,null,null,null,null,null,null,null,""]
[0,70,"",null,null,null,null,null,null,null,null,null,null,null,""]
[0,71,"",null,null,null,null,null,null,null,null,null,null,null,""]
[0,72,"",null,null,null,null,null,null,null,null,null,null,null,""]
[0,73,"",null,null,null,null,null,null,null,null,null,null,null,""]
[0,74,"",null,null,null,null,null,null,null,null,null,null,null,""]
[0,75,"",null,null,null,null,null,null,null,null,null,null,null,""]
[0,76,"",null,null,null,null,null,null,null,null,null,null,null,""]
[null,77,{"$f":"IF(A92=0,\"\",O92&VLOOKUP(A92,Data,2))","v":""},null,null,null,null,null,null,null,null,null,null,"A","A - "]
[null,null,{"$f":"IF(B93=0,\"\",VLOOKUP(B93,Data,2))","v":""},null,null,null,null,null,null,null,null,null,null,"A",{"$f":"IF(N93=\"\",\"\",N93&\" - \")","v":"A - "}]
[null,null,null,null,null,null,null,null,null,null,null,null,null,"A","A - "]
[null,null,null,null,null,null,null,null,null,null,null,null,null,"A","A - "]
[null,null,null,null,null,null,null,null,null,null,null,null,null,"A","A - "]
[null,null,null,null,null,null,null,null,null,null,null,null,null,"A","A - "]
[null,null,null,null,null,null,null,null,null,null,null,null,null,"A","A - "]
[null,null,null,null,null,null,null,null,null,null,null,null,null,"A","A - "]

{"sheet":"Feuil2","index":1,"n_rows":99,"n_cols":92,"rows_kept":99,"cut":false,"hidden":true,"merged":[]}
[null,1,2,3,4,5,6,7,8,9,10,11,12,13,14,15,16,17,18,19,20,21,22,23,24,25,26,27,28,29,30,31,32,33,34,35,36,37,38,39,40,41,42,43,44,45,46,47,48,49,50,51,52,53,54,55,56,57,58,59,60,61,62,63,64,65,66,67,68,69,70,71,72,73,74,75,76,77,78,79,80,81,82,83,84,85,86,87,87,88,89,90]
[null,null,null,null,null,null,null,null,null,null,null,null,null,null,null,null,null,null,null,null,null,null,null,null,null,null,null,null,null,null,null,null,null,null,null,null,null,null,null,null,null,null,null,null,null,null,null,null,null,null,null,null,null,null,null,null,null,null,null,null,null,null,null,null,null,null,null,null,null,null,null,null,null,null,null,null,null,null,null,null,null,null,"Bienvenue dans le QUIZ horticole.                                                                          Cliquez sur une fleur (ou Ctrl + q) pour  afficher  une nouvelle espèce !","                                                                  Toutes les fleurs ont été vues…        Bravo !"]
[]
[null,"allium fantasisa","amaryllis","ancolie","anémone","arnica","arum","aster","berce","bleuet","bouton d'or (trolle)","camomille","campanule carillon","capucine","centaurée","chardon","chèvrefeuille","chrysanthème","cirse","coquelicot","coucou","crocus","dahlia","digitale","edelweiss","églantine","épervière","fuchsia","gardénia","gazania","gentiane","gerbera","glaïeul","hibiscus","hortensia","iris","jacynthe","jonquille","joubarbe","lilas","liseron","lotus","lupin","lys","marguerite","mauve","mimosa (acacia)","muguet","myosotis","narcisse","nénuphar","œillet","orchis","orpin bâtard","pâquerette","pavot","pensée","perce-neige","petite éclaire - ficaire","phlox","pissenlit","pivoine","poinsettia (étoile Noël)","potentille","primevère","pulsatille","rhododendron","rose","sabot de Vénus","saxifraga","silène","soldanelle alpine","souci officinal","strelitzia (ois. paradis)","tournesols","tulipe","violette"]
[null,"Amaryllidaceae","Amaryllidaceae","Renonculacées","Renonculacées","Asteraceae","Araceae","Asteraceae","Apiaceae","Asteraceae","Renonculacées","Renonculacées","Campanulaceae","Tropaeolaceae","Asteraceae","Asteraceae","Caprifoliaceae","Asteraceae","Asteraceae","Papaveraceae","Primulaceae","Iridaceae","Asteraceae","Scrophulariaceae","Asteraceae","Rosaceae","Asteraceae","Onagraceae","Rubiaceae","Asteraceae","Gentianaceae","Asteraceae","Iridaceae","Malvaceae","Hydrangeaceae","Iridaceae","Liliaceae","Amaryllidaceae","Crassulaceae","Oleaceae","Convolvulaceae","Nymphaeaceae","Fabaceae","Liliaceae","Asteraceae ","Malvaceae","Mimosaceae","Liliaceae","Boraginaceae","Amaryllidaceae","Nymphaeaceae","Asteraceae","Orchidaceae","Crassulaceae","Asteraceae ","Papaveraceae","Violaceae","Amaryllidaceae","Ranunculaceae","Polemoniaceae","Asteraceae ","Paeoniaceae","Euphorbiaceae","Rosaceae","Primulaceae","Ranunculales","Ericaceae","Rosaceae","Orchidaceae","Saxifragaceae","Caryophyllaceae","Primulaceae","Asteraceae","Strelitziaceae","Asteraceae","Liliaceae","Violaceae"]
[null,"allium","hippeastrum ","aquilegia","anemone ","arnica montana","calla aethiopica","aster alpinus","heracleum","vaccinium ","trollius","matricaria ","campanula","tropaeolum majus","centaurea","carduus","lonicera","chrysanthemum","cirsium","papaver rhoeas","primula veris","crocus","dahlia","digitalis","leontopodium","rosa arvensis","hieracium","fuchsia","gardenia","gazania rigens","gentiana lutea","gerbera","gladiolus","hibiscus","hydrangea","iris spuria","hyacinthus","narcissus pseudomarcissus","sempervivum","syringa vulgaris","convolvulus arvensis","nelumbo nucifera","lupinus","lilium","leucanthemum","malva sylvestris","mimosa pudica","convallaria majalis","myosotis sylvatica","narcissus","nymphaea","dianthus","orchis","sedum spurium","bellis perennis","papaver","Viola tricolor","galanthus nivalis","ficaria verna","phlox paniculata","taraxacum","paeonia","euphorbia","potentilla","Primula","pulsatilla","rhododendron","rosa","cypripedium calceolus","saxifraga","silene","soldanella","calendula","strelitzia reginae","helianthus annuus","tulipa sylvestris","viola odorata"]
[]
[null,null,null,null,null,null,null,null,null,null,null,null,null,null,null,null,null,null,null,null,null,null,null,null,null,null,null,null,null,null,null,null,null,null,null,null,null,null,null,null,null,null,null,null,null,null,null,null,null,null,null,null,null,null,null,null,null,null,null,null,null,null,null,null,null,null,null,null,null,null,null,null,null,null,null,null,null,null,null,null,null,null,"Bienvenue dans le QUIZ horticole.                                                                          Cliquez sur une fleur (ou Ctrl + q) pour  afficher  une nouvelle espèce !","                                                                  Toutes les fleurs ont été vues…        Bravo !"]
[]
[]
[]
[]
[]
[]
[]
[]
[]
[]
[]
[1,{"$f":"TRANSPOSE(B4:CC6)","v":"allium fantasisa"},"Amaryllidaceae","allium",{"$f":"\"A       \"","v":"A       "},{"$f":"E20&B20","v":"A       allium fantasisa"}]
[2,"amaryllis","Amaryllidaceae","hippeastrum ",{"$f":"\"         \"","v":"         "},{"$f":"E21&B21","v":"         amaryllis"}]
[3,"ancolie","Renonculacées","aquilegia",{"$f":"\"         \"","v":"         "},"         ancolie"]
[4,"anémone","Renonculacées","anemone ","         ","         anémone"]
[5,"arnica","Asteraceae","arnica montana","         ","         arnica"]
[6,"arum","Araceae","calla aethiopica","         ",{"$f":"E25&B25","v":"         arum"}]
[7,"aster","Asteraceae","aster alpinus",{"$f":"\"         \"","v":"         "},{"$f":"E26&B26","v":"         aster"}]
[8,"berce","Apiaceae","heracleum",{"$f":"\"B       \"","v":"B       "},{"$f":"E27&B27","v":"B       berce"}]
[9,"bleuet","Asteraceae","vaccinium ","         ","         bleuet"]
[10,"bouton d'or (trolle)","Renonculacées","trollius","         ",{"$f":"E29&B29","v":"         bouton d'or (trolle)"}]
[11,"camomille","Renonculacées","matricaria ",{"$f":"\"C       \"","v":"C       "},{"$f":"E30&B30","v":"C       camomille"}]
[12,"campanule carillon","Campanulaceae","campanula","         ","         campanule carillon"]
[13,"capucine","Tropaeolaceae","tropaeolum majus","         ","         capucine"]
[14,"centaurée","Asteraceae","centaurea","         ","         centaurée"]
[15,"chardon","Asteraceae","carduus","         ","         chardon"]
[16,"chèvrefeuille","Caprifoliaceae","lonicera","         ","         chèvrefeuille"]
[17,"chrysanthème","Asteraceae","chrysanthemum","         ","         chrysanthème"]
[18,"cirse","Asteraceae","cirsium","         ","         cirse"]
[19,"coquelicot","Papaveraceae","papaver rhoeas","         ","         coquelicot"]
[20,"coucou","Primulaceae","primula veris","         ","         coucou"]
[21,"crocus","Iridaceae","crocus","         ","         crocus"]
[22,"dahlia","Asteraceae","dahlia",{"$f":"\"D       \"","v":"D       "},"D       dahlia"]
[23,"digitale","Scrophulariaceae","digitalis",{"$f":"\"         \"","v":"         "},"         digitale"]
[24,"edelweiss","Asteraceae","leontopodium",{"$f":"\"E       \"","v":"E       "},"E       edelweiss"]
[25,"églantine","Rosaceae","rosa arvensis","         ","         églantine"]
[26,"épervière","Asteraceae","hieracium","         ","         épervière"]
[27,"fuchsia","Onagraceae","fuchsia",{"$f":"\"F       \"","v":"F       "},"F       fuchsia"]
[28,"gardénia","Rubiaceae","gardenia",{"$f":"\"G      \"","v":"G      "},"G      gardénia"]
[29,"gazania","Asteraceae","gazania rigens","         ","         gazania"]
[30,"gentiane","Gentianaceae","gentiana lutea","         ","         gentiane"]
[31,"gerbera","Asteraceae","gerbera","         ","         gerbera"]
[32,"glaïeul","Iridaceae","gladiolus","         ","         glaïeul"]
[33,"hibiscus","Malvaceae","hibiscus",{"$f":"\"H       \"","v":"H       "},"H       hibiscus"]
[34,"hortensia","Hydrangeaceae","hydrangea",{"$f":"\"         \"","v":"         "},"         hortensia"]
[35,"iris","Iridaceae","iris spuria",{"$f":"\"I        \"","v":"I        "},"I        iris"]
[36,"jacynthe","Liliaceae","hyacinthus",{"$f":"\"J        \"","v":"J        "},"J        jacynthe"]
[37,"jonquille","Amaryllidaceae","narcissus pseudomarcissus","         ","         jonquille"]
[38,"joubarbe","Crassulaceae","sempervivum","         ","         joubarbe"]
[39,"lilas","Oleaceae","syringa vulgaris",{"$f":"\"L       \"","v":"L       "},"L       lilas"]
[40,"liseron","Convolvulaceae","convolvulus arvensis","         ","         liseron"]
[41,"lotus","Nymphaeaceae","nelumbo nucifera","         ","         lotus"]
[42,"lupin","Fabaceae","lupinus","         ","         lupin"]
[43,"lys","Liliaceae","lilium","         ","         lys"]
[44,"marguerite","Asteraceae ","leucanthemum",{"$f":"\"M     \"","v":"M     "},"M     marguerite"]
[45,"mauve","Malvaceae","malva sylvestris","         ","         mauve"]
[46,"mimosa (acacia)","Mimosaceae","mimosa pudica","         ","         mimosa (acacia)"]
[47,"muguet","Liliaceae","convallaria majalis","         ","         muguet"]
[48,"myosotis","Boraginaceae","myosotis sylvatica","         ","         myosotis"]
[49,"narcisse","Amaryllidaceae","narcissus",{"$f":"\"N      \"","v":"N      "},"N      narcisse"]
[50,"nénuphar","Nymphaeaceae","nymphaea","         ","         nénuphar"]
[51,"œillet","Asteraceae","dianthus",{"$f":"\"O      \"","v":"O      "},"O      œillet"]
[52,"orchis","Orchidaceae","orchis","         ","         orchis"]
[53,"orpin bâtard","Crassulaceae","sedum spurium","         ","         orpin bâtard"]
[54,"pâquerette","Asteraceae ","bellis perennis",{"$f":"\"P       \"","v":"P       "},"P       pâquerette"]
[55,"pavot","Papaveraceae","papaver","         ","         pavot"]
[56,"pensée","Violaceae","Viola tricolor","         ","         pensée"]
[57,"perce-neige","Amaryllidaceae","galanthus nivalis","         ","         perce-neige"]
[58,"petite éclaire - ficaire","Ranunculaceae","ficaria verna","         ","         petite éclaire - ficaire"]
[59,"phlox","Polemoniaceae","phlox paniculata","         ","         phlox"]
[60,"pissenlit","Asteraceae ","taraxacum","         ","         pissenlit"]
[61,"pivoine","Paeoniaceae","paeonia","         ","         pivoine"]
[62,"poinsettia (étoile Noël)","Euphorbiaceae","euphorbia","         ","         poinsettia (étoile Noël)"]
[63,"potentille","Rosaceae","potentilla","         ","         potentille"]
[64,"primevère","Primulaceae","Primula","         ","         primevère"]
[65,"pulsatille","Ranunculales","pulsatilla","         ","         pulsatille"]
[66,"rhododendron","Ericaceae","rhododendron",{"$f":"\"R       \"","v":"R       "},{"$f":"E85&B85","v":"R       rhododendron"}]
[67,"rose","Rosaceae","rosa","         ","         rose"]
[68,"sabot de Vénus","Orchidaceae","cypripedium calceolus",{"$f":"\"S       \"","v":"S       "},"S       sabot de Vénus"]
[69,"saxifraga","Saxifragaceae","saxifraga","         ","         saxifraga"]
[70,"silène","Caryophyllaceae","silene","         ","         silène"]
[71,"soldanelle alpine","Primulaceae","soldanella","         ","         soldanelle alpine"]
[72,"souci officinal","Asteraceae","calendula","         ","         souci officinal"]
[73,"strelitzia (ois. paradis)","Strelitziaceae","strelitzia reginae","         ","         strelitzia (ois. paradis)"]
[74,"tournesols","Asteraceae","helianthus annuus",{"$f":"\"T       \"","v":"T       "},"T       tournesols"]
[75,"tulipe","Liliaceae","tulipa sylvestris","         ","         tulipe"]
[76,"violette","Violaceae","viola odorata",{"$f":"\"V       \"","v":"V       "},"V       violette"]
[77,0,0,0,null,"0"]
[78,0,0,0,null,"0"]
[79,0,0,0,null,"0"]
[80,0,0,0]